fUST/lending_fUST_20260325
["ID","MTS","AMOUNT","RATE_DAILY","PERIOD"]
[408899071,1774416638492,-196.1530332,0.00016032,2]
[408899072,1774416638501,-324.7426577,0.00016032,2]
[408899073,1774416638510,-324.7865589,0.00016032,2]
[408899074,1774416638519,-196.1530332,0.00016032,2]
[408899075,1774416638527,-324.7426578,0.00016032,2]
[408899076,1774416638536,-196.1530332,0.00016032,2]
[408899077,1774416638545,-454.9280236,0.00016032,2]
[408899078,1774416638554,-196.1708088,0.00016032,2]
[408899079,1774416638563,-454.9280236,0.00016032,2]
[408899080,1774416638572,-454.9280236,0.00016032,2]
[408899081,1774416638583,-324.7345818,0.00016032,2]
[408899082,1774416638592,-454.9734141,0.00016032,2]
[408899083,1774416638601,-196.1530332,0.00016032,2]
[408899084,1774416638611,-324.7426578,0.00016087,2]
[408899085,1774416638622,-196.1530332,0.00016087,2]
[408899086,1774416638631,-324.7756632,0.00016087,2]
[408899087,1774416638640,-663.88964355,0.00016138,2]
[408899088,1774416638649,-4151.77804851,0.00016138,2]
[408899089,1774416638663,-59795.2149207,0.00016138,2]
[408899090,1774416638672,-1088.95439,0.0001615,2]
[408899091,1774416638681,-2940.52489605,0.00016173,2]
[408899092,1774416638690,-153.453666,0.00016237,2]
[408899093,1774416638700,-228.59283659,0.00016237,2]
[408899094,1774416638709,-500.0,0.00016237,2]
[408899095,1774416638718,-247.87081616,0.00016237,2]
[408899096,1774416638730,-211.95945849,0.00016237,2]
[408899097,1774416638739,-500.0,0.00016237,2]
[408899098,1774416638748,-500.0,0.00016237,2]
[408899099,1774416638756,-500.0,0.00016237,2]
[408899100,1774416638765,-500.0,0.00016237,2]
[408899101,1774416638774,-399.08984982,0.00016237,2]
[408899102,1774416638782,-491.80337482,0.00016237,2]
[408899103,1774416638791,-500.0,0.00016237,2]
[408899104,1774416638800,-47.15849314,0.00016238,2]
[408899397,1774416643593,-478.55877297,0.00016238,2]
[408899662,1774416646412,-1496.07155017,0.00016076,2]
[408899664,1774416646421,-12002.78699751,0.00016238,2]
[408899666,1774416646432,-1929.10950984,0.00016238,2]
[408899671,1774416646471,-69774.33475064,0.00016238,2]
[408900154,1774417838438,-5000.0,0.00013017,2]
[408900155,1774417838448,-4110.99960341,0.00013149,2]
[408900542,1774417843471,-345.3086357,0.00013017,2]
[408900544,1774417843480,-2326.54505174,0.00013149,2]
[408900770,1774417846519,-1958.76699546,0.00013149,2]
[408900771,1774417846576,-2379.23300449,0.00013149,2]
[408900772,1774417846586,-607.0,0.00013149,2]
[408900773,1774417846595,-1368.5040399,0.0001367,2]
[408900774,1774417846604,-1000.0,0.00013699,2]
[408900775,1774417846613,-3053.82539629,0.0001377,2]
[408900776,1774417846622,-3391.57273949,0.0001387,2]
[408900777,1774417846631,-520.67,0.00013875,2]
[408900778,1774417846641,-3434.76090893,0.0001397,2]
[408900779,1774417846653,-827.81126252,0.0001407,2]
[408900780,1774417846663,-2901.50882026,0.0001407,2]
[408900781,1774417846673,-4067.06742607,0.0001417,2]
[408900782,1774417846682,-355.0,0.0001417,2]
[408900783,1774417846691,-306.98784488,0.0001417,2]
[408900784,1774417846701,-277.99,0.00014687,2]
[408900785,1774417846711,-555.0,0.00014687,2]
[408900786,1774417846730,-10000.0,0.00015205,2]
[408900787,1774417846740,-327.6471407,0.0001521,2]
[408900788,1774417846750,-1253.55995936,0.00015873,2]
[408900796,1774418403809,176.22,2e-05,2]
[408900797,1774418424038,-176.22,2.1e-05,2]
[408900798,1774418424065,-176.22,2.1e-05,2]
[408900799,1774418424091,-135.6,2.2e-05,2]
[408900800,1774418453293,-40.62,2.2e-05,2]
[408900802,1774418738348,-176.22,2.2e-05,2]
[408900805,1774418931662,1220.98,3e-05,10]
[408900807,1774419003535,179.37,2e-05,2]
[408900808,1774419003956,32.98958789,2.1e-05,2]
[408900809,1774419003980,146.38041211,2.1e-05,2]
[408900810,1774419004380,179.37,2.1e-05,2]
[408900811,1774419004754,88.73126172,2.2e-05,2]
[408901215,1774419043686,-3920.10332783,2.178e-05,2]
[408901241,1774419046675,-120.87155189,2.178e-05,2]
[408901242,1774419046685,-90.63873828,2.2e-05,2]
[408901243,1774419046695,-179.37,2.2e-05,2]
[408901244,1774419046704,-156.0,0.00013699,2]
[408901246,1774419046714,-254.03735155,0.00013699,2]
[408901254,1774419603613,123.78,2e-05,2]
[408901255,1774419603639,29.02,2e-05,2]
[408901280,1774420158217,270.98,1.979e-05,2]
[408901281,1774420158244,31.75848456,1.979e-05,2]
[408901282,1774420203670,209.47,2e-05,2]
[408901283,1774420204253,58.77151544,2e-05,2]
[408901284,1774420204281,150.69848456,2e-05,2]
[408901285,1774420204605,149.30151544,2e-05,2]
[408901286,1774420204633,60.16848456,2e-05,2]
[408901287,1774420205013,209.47,2e-05,2]
[408901288,1774420205384,30.36151544,2e-05,2]
[408901289,1774420205409,179.10848456,2e-05,2]
[408901290,1774420205831,120.89151544,2e-05,2]
[408901291,1774420205859,88.57848456,2e-05,2]
[408901292,1774420206288,209.47,2e-05,2]
[408901293,1774420206634,1.95151544,2e-05,2]
[408901294,1774420206660,207.51848456,2e-05,2]
[408901295,1774420207054,92.48151544,2e-05,2]
[408901296,1774420207080,116.98848456,2e-05,2]
[408901297,1774420207463,183.01151544,2e-05,2]
[408901298,1774420207490,26.45848456,2e-05,2]
[408901299,1774420207878,209.47,2e-05,2]
[408901300,1774420223834,-152.8,2.1e-05,2]
[408901301,1774420223863,-152.8,2.1e-05,2]
[408901302,1774420223893,-209.47,2.1e-05,2]
[408901334,1774420231673,-209.47,2.1e-05,2]
[408901336,1774420231682,-209.47,2.1e-05,2]
[408901338,1774420231692,-209.47,2.1e-05,2]
[408901341,1774420231701,-209.47,2.1e-05,2]
[408901344,1774420231711,-209.47,2.1e-05,2]
[408901347,1774420231719,-209.47,2.1e-05,2]
[408901350,1774420231728,-209.47,2.1e-05,2]
[408901353,1774420231737,-209.47,2.1e-05,2]
[408901355,1774420231748,-209.47,2.1e-05,2]
[408901357,1774420231757,-209.47,2.1e-05,2]
[408901359,1774420231767,-209.47,2.1e-05,2]
[408901362,1774420231776,-209.47,2.1e-05,2]
[408901365,1774420231786,-209.47,2.1e-05,2]
[408901368,1774420231795,-209.47,2.1e-05,2]
[408901371,1774420231804,-209.47,2.1e-05,2]
[408901374,1774420231813,-209.47,2.1e-05,2]
[408901377,1774420231823,-209.47,2.1e-05,2]
[408901380,1774420231832,-209.47,2.1e-05,2]
[408901382,1774420231841,-209.47,2.1e-05,2]
[408901385,1774420231851,-209.47,2.1e-05,2]
[408901386,1774420231860,-209.47,2.1e-05,2]
[408901388,1774420231869,-209.47,2.1e-05,2]
[408901391,1774420231878,-209.47,2.1e-05,2]
[408901393,1774420231887,-209.47,2.1e-05,2]
[408901394,1774420231896,-152.8,2.2e-05,2]
[408901396,1774420231905,-209.47,2.2e-05,2]
[408901398,1774420231915,-209.47,2.2e-05,2]
[408901401,1774420231924,-209.47,2.2e-05,2]
[408901402,1774420231933,-209.47,2.2e-05,2]
[408901405,1774420231942,-209.47,2.2e-05,2]
[408901406,1774420231951,-209.47,2.2e-05,2]
[408901408,1774420231960,-209.47,2.2e-05,2]
[408901410,1774420231970,-209.47,2.2e-05,2]
[408901412,1774420231979,-209.47,2.2e-05,2]
[408901414,1774420231988,-209.47,2.2e-05,2]
[408901416,1774420231997,-209.47,2.2e-05,2]
[408901418,1774420232006,-209.47,2.2e-05,2]
[408901420,1774420232016,-209.47,2.2e-05,2]
[408901422,1774420232025,-209.47,2.2e-05,2]
[408901424,1774420232034,-250.0,2.593e-05,2]
[408901426,1774420232043,-191.0,4.005e-05,2]
[408901428,1774420232052,-959.69348284,5e-05,2]
[408901430,1774420232061,-189.33362833,9.973e-05,2]
[408901432,1774420232070,-500.0,0.00010498,2]
[408901434,1774420232079,-185.5836725,0.00011,2]
[408901436,1774420232087,-500.0,0.0001105,2]
[408901438,1774420232096,-2416.22431009,0.00011427,2]
[408901440,1774420232106,-500.0,0.00011603,2]
[408901442,1774420232115,-500.0,0.00012183,2]
[408901444,1774420232124,-500.0,0.00012792,2]
[408901446,1774420232133,-465.50701202,0.00013699,2]
[408901449,1774420232146,-252.513281,0.00013699,2]
[408901472,1774420237795,-281.97970698,0.00013699,2]
[408901473,1774420237804,-870.684017,0.00013711,2]
[408901474,1774420237813,-567.0221657,0.00014176,2]
[408901475,1774420237823,-300.0,0.00014385,2]
[408901476,1774420237833,-300.0,0.00014385,2]
[408901477,1774420237843,-159.0,0.00014387,2]
[408901478,1774420237852,-300.0,0.00014387,2]
[408901479,1774420237862,-191.20724504,0.00014388,2]
[408901480,1774420237873,-133.53541266,0.00014388,2]
[408901481,1774420237883,-324.7426577,0.00014388,2]
[408901482,1774420237893,-324.7426577,0.00014388,2]
[408901483,1774420237903,-324.7426577,0.00014388,2]
[408901484,1774420237912,-324.7426577,0.00014389,2]
[408901485,1774420237922,-324.7426577,0.00014392,2]
[408901486,1774420237931,-2737.55259072,0.00014641,2]
[408901487,1774420237942,-1000.0,0.00015195,2]
[408901488,1774420237951,-324.7426577,0.0001521,2]
[408901489,1774420237960,-324.7426577,0.0001521,2]
[408901490,1774420237970,-196.1708088,0.0001521,2]
[408901491,1774420237980,-305.4074276,0.00015211,2]
[408901492,1774420237991,-324.7756633,0.00015214,2]
[408901493,1774420238002,-324.7426577,0.00015265,2]
[408901494,1774420238011,-365.04901044,0.00015314,2]
[408901495,1774420238023,-806.95098956,0.00015314,2]
[408901496,1774420238033,-327.13846644,0.00015474,2]
[408901517,1774420240293,-397.28603433,0.00015474,2]
[408901519,1774420240303,-86.71396567,0.00015573,2]
[408901525,1774420240353,-415.91966684,0.00015573,2]
[408901527,1774420240363,-529.71322487,0.00015573,2]
[408901529,1774420240372,-528.9704394,0.00015573,2]
[408901531,1774420240381,-311.62794106,0.00015573,2]
[408901773,1774420243007,-44.39579989,0.00015573,2]
[408901776,1774420243021,-500.0,0.00015573,2]
[408901778,1774420243030,-500.90879468,0.00015573,2]
[408901780,1774420243039,-500.0,0.00015573,2]
[408901782,1774420243048,-500.0,0.00015573,2]
[408901784,1774420243057,-114.69540543,0.00015573,2]
[408901786,1774420243068,-385.30459457,0.00015573,2]
[408901788,1774420243078,-500.0,0.00015573,2]
[408901790,1774420243087,-500.0,0.00015573,2]
[408901792,1774420243096,-500.0,0.00015573,2]
[408901794,1774420243106,-399.73614565,0.00015573,2]
[408901796,1774420243116,-500.0,0.00015573,2]
[408901798,1774420243125,-500.0,0.00015573,2]
[408901800,1774420243134,-500.0,0.00015573,2]
[408901802,1774420243143,-500.0,0.00015573,2]
[408901804,1774420243153,-500.0,0.00015573,2]
[408901806,1774420243162,-500.0,0.00015573,2]
[408901808,1774420243172,-500.0,0.00015573,2]
[408901810,1774420243182,-168.19134766,0.00015573,2]
[408901812,1774420243191,-173.50957131,0.00015573,2]
[408901815,1774420243200,-498.37162094,0.00015573,2]
[408901817,1774420243210,-3183.88816955,0.00015574,2]
[408901819,1774420243222,-443.0,0.00015574,2]
[408901910,1774420245716,-731.53371243,0.00015574,2]
[408901911,1774420245945,-2733.15309702,0.00015574,2]
[408901912,1774420245955,-509.87632659,0.00015574,2]
[408901920,1774420639942,64.07151544,2.01e-05,2]
[408901921,1774420639967,300.0,2.01e-05,2]
[408901922,1774420639991,300.0,2.01e-05,2]
[408901923,1774420640015,300.0,2.01e-05,2]
[408901924,1774420640038,101.92848456,2.01e-05,2]
[408901992,1774421079364,-243.18130155,0.00011,5]
[408901993,1774421091414,-961.20626129,0.00012897,2]
[408901994,1774421091435,-38.79373871,0.00012927,2]
[408901995,1774421092532,-1000.0,0.00012927,2]
[408901996,1774421093473,-1000.0,0.00012927,2]
[408901997,1774421094397,-1000.0,0.00012927,2]
[408901998,1774421100467,-1000.0,0.00012927,2]
[408901999,1774421101199,-1000.0,0.00012927,2]
[408902000,1774421102042,-1000.0,0.00012927,2]
[408902001,1774421102945,-177.11409348,0.00012927,2]
[408902002,1774421102965,-803.06333789,0.00013027,2]
[408902003,1774421102988,-19.82256863,0.00013159,2]
[408902004,1774421104195,-587.17743137,0.00013159,2]
[408902005,1774421104217,-412.82256863,0.00013699,2]
[408902011,1774421143508,-296.93786377,0.00010474,2]
[408902012,1774421143528,-587.17743137,0.00013699,2]
[408902013,1774421143549,-215.88470486,0.00013958,2]
[408902014,1774421168542,-1000.0,0.00013699,2]
[408902015,1774421170263,-784.11529514,0.00013958,2]
[408902016,1774421179669,-215.88470486,0.00014,2]
[408902017,1774421185833,-34.2299059,0.00014,2]
[408902018,1774421185856,-965.7700941,0.00014195,2]
[408902019,1774421188198,-992.9969014,0.00014195,2]
[408902045,1774421280642,-200.0,0.00014392,2]
[408902050,1774421314576,311.22926903,3e-05,10]
[408902052,1774421403601,156.75,2e-05,2]
[408902053,1774421404021,41.32151544,2e-05,2]
[408902054,1774421404048,115.42848456,2e-05,2]
[408902055,1774421404623,156.75,2e-05,2]
[408902056,1774421404814,27.82151544,2e-05,2]
[408902057,1774421404846,128.92848456,2e-05,2]
[408902058,1774421405237,156.75,2e-05,2]
[408902190,1774421438199,-156.75,2.1e-05,2]
[408902191,1774421438211,-156.75,2.1e-05,2]
[408902192,1774421438222,-156.75,2.1e-05,2]
[408902193,1774421438234,-156.75,2.1e-05,2]
[408902194,1774421438246,-156.75,2.1e-05,2]
[408902195,1774421438260,-156.75,2.1e-05,2]
[408902196,1774421438272,-156.75,2.1e-05,2]
[408902197,1774421438283,-156.75,2.1e-05,2]
[408902198,1774421438292,-156.75,2.1e-05,2]
[408902199,1774421438302,-156.75,2.2e-05,2]
[408902200,1774421438312,-156.75,2.2e-05,2]
[408902201,1774421438323,-156.75,2.2e-05,2]
[408902202,1774421438332,-156.75,2.2e-05,2]
[408902203,1774421438341,-156.75,2.2e-05,2]
[408902204,1774421438350,-166.66666666,0.00014343,2]
[408902206,1774421438359,-124.6835769,0.00014392,2]
[408902207,1774421438368,-324.7756632,0.00014443,2]
[408902209,1774421438378,-196.1530332,0.00015174,2]
[408902212,1774421438389,-324.7426577,0.0001521,2]
[408902213,1774421438399,-300.0,0.00015564,2]
[408902215,1774421438407,-300.0,0.00015564,2]
[408902216,1774421438416,-300.0,0.00015564,2]
[408902217,1774421438425,-1200.0,0.00015564,2]
[408902218,1774421438444,-250.0,0.00015565,2]
[408902219,1774421438459,-250.0,0.00015565,2]
[408902220,1774421438470,-250.0,0.00015565,2]
[408902221,1774421438479,-250.0,0.00015565,2]
[408902222,1774421438489,-250.0,0.00015565,2]
[408902223,1774421438499,-537.6845,0.00015565,2]
[408902224,1774421438507,-250.0,0.00015565,2]
[408902225,1774421438516,-250.0,0.00015565,2]
[408902226,1774421438525,-250.0,0.00015565,2]
[408902227,1774421438534,-250.0,0.00015565,2]
[408902228,1774421438543,-250.0,0.00015565,2]
[408902229,1774421438553,-250.0,0.00015565,2]
[408902230,1774421438562,-368.67977273,0.00015565,2]
[408902231,1774421438572,-151.54327358,0.00015565,2]
[408902232,1774421438581,-2150.738,0.00015565,2]
[408902233,1774421438590,-3144.80733263,0.00015565,2]
[408902234,1774421438599,-173.91861798,0.00015573,2]
[408902235,1774421438607,-500.0,0.00015573,2]
[408902236,1774421438616,-500.0,0.00015573,2]
[408902237,1774421438626,-500.0,0.00015573,2]
[408902238,1774421438635,-500.0,0.00015573,2]
[408902239,1774421438644,-500.0,0.00015573,2]
[408902240,1774421438654,-178.69397889,0.00015573,2]
[408902241,1774421438663,-500.0,0.00015573,2]
[408902242,1774421438673,-500.0,0.00015573,2]
[408902243,1774421438682,-386.81913477,0.00015573,2]
[408902244,1774421438691,-504.06281159,0.00015573,2]
[408902245,1774421438700,-92499.49760245,0.00015574,2]
[408902246,1774421438712,-1361.65902798,0.00015574,2]
[408902247,1774421438723,-160875.07069934,0.00015574,2]
[408902248,1774421438733,-151.0,0.00015574,2]
[408902249,1774421438743,-211.06352082,0.00015574,2]
[408902250,1774421438752,-151.0,0.00015615,2]
[408902251,1774421438761,-500.0,0.00015615,2]
[408902252,1774421438770,-557.5788265,0.0001562,2]
[408902253,1774421438779,-272.134048,0.00015625,2]
[408902254,1774421438797,-488.00540138,0.00015675,2]
[408902499,1774421443138,-0.00566718,0.00015574,2]
[408902676,1774421445905,-499.99433282,0.00015574,2]
[408902677,1774421445915,-90.2038417,0.00015675,2]
[408902678,1774421445924,-164.74619557,0.0001573,2]
[408902679,1774421446082,-434.8567895,0.0001573,2]
[408902680,1774421446093,-621.78829552,0.00015785,2]
[408902681,1774421446103,-644.79446246,0.0001584,2]
[408902682,1774421446115,-668.65185757,0.00015895,2]
[408902683,1774421446124,-878.9,0.000159,2]
[408902684,1774421446133,-691.96589148,0.0001595,2]
[408902685,1774421446142,-151.703655,0.00015996,2]
[408902686,1774421446151,-160.75,0.00016038,2]
[408902687,1774421446161,-2150.738,0.00016113,2]
[408902688,1774421446173,-2898.21673104,0.00016248,6]
[408902689,1774421446182,-272.134048,0.00016283,2]
[408902690,1774421446191,-1775.39605592,0.000163,2]
[408902691,1774421446200,-503.71111093,0.00016333,2]
[408902692,1774421446210,-1124.0,0.0001639,2]
[408902693,1774421446220,-230.84082452,0.00016413,2]
[408902694,1774421446231,-272.668,0.00016438,2]
[408902695,1774421446240,-152.196692,0.00016438,2]
[408902696,1774421446250,-151.0,0.00016438,2]
[408902697,1774421446264,-151.0,0.00016438,2]
[408902698,1774421446273,-151.0,0.00016438,2]
[408902699,1774421446282,-151.0,0.00016438,2]
[408902700,1774421446291,-151.0,0.00016438,2]
[408902701,1774421446301,-151.0,0.00016438,2]
[408902702,1774421446311,-151.0,0.00016438,2]
[408902703,1774421446320,-151.0,0.00016438,2]
[408902704,1774421446329,-151.0,0.00016438,2]
[408902705,1774421446338,-151.0,0.00016438,2]
[408902706,1774421446352,-151.0,0.00016438,2]
[408902707,1774421446362,-151.0,0.00016438,2]
[408902708,1774421446371,-151.0,0.00016438,2]
[408902709,1774421446380,-285.0,0.00016438,2]
[408902710,1774421446389,-500.54244637,0.00016487,2]
[408902711,1774421446399,-500.0,0.00016487,2]
[408902712,1774421446408,-249.07211082,0.00016487,2]
[408902713,1774421446418,-521.08804885,0.00016487,2]
[408902714,1774421446428,-500.95495457,0.00016487,2]
[408902715,1774421446437,-500.36593071,0.00016487,2]
[408902716,1774421446446,-151.0,0.00016531,2]
[408902717,1774421446455,-151.0,0.00016531,2]
[408902718,1774421446465,-151.0,0.00016531,2]
[408902719,1774421446474,-500.0,0.00016531,2]
[408902720,1774421446483,-500.0,0.00016531,2]
[408902721,1774421446492,-500.0,0.00016547,2]
[408902722,1774421446501,-520.51524112,0.00016547,2]
[408902723,1774421446510,-171.45,0.00016611,2]
[408902724,1774421446520,-503.70671462,0.00016621,2]
[408902725,1774421446529,-163.65781887,0.00016621,2]
[408902726,1774421446539,-168.0,0.00016668,2]
[408902727,1774421446548,-501.53813478,0.00016683,2]
[408902728,1774421446556,-932.44716926,0.000168,2]
[408902729,1774421446565,-454.9280236,0.00016816,2]
[408902730,1774421446574,-271.440539,0.00016848,2]
[408902731,1774421446583,-878.9,0.000169,2]
[408902732,1774421446593,-272.134048,0.00016941,2]
[408902733,1774421446601,-152.0,0.00016941,2]
[408902734,1774421446610,-420.0,0.00017024,2]
[408902735,1774421446619,-151.0,0.00017024,2]
[408902736,1774421446629,-151.0,0.00017024,2]
[408902737,1774421446638,-151.0,0.00017024,2]
[408902738,1774421446647,-504.96443852,0.00017035,2]
[408902739,1774421446656,-168.0,0.00017071,2]
[408902740,1774421446665,-137.74840871,0.00017079,2]
[408902755,1774422119486,-1000.0,0.00013699,2]
[408902756,1774422127119,431.67929619,0.00013905,2]
[408902757,1774422136210,-165.165435,0.00014705,2]
[408902758,1774422152959,-1084.0,0.00016458,2]
[408902759,1774422153034,-3318.25933839,0.00016554,2]
[408902760,1774422182154,-687.84473119,0.00016554,2]
[408902761,1774422182179,-305.15526881,0.00016554,2]
[408902762,1774422211599,-687.84473119,0.00013699,2]
[408902798,1774422603678,14.32151544,2e-05,2]
[408902799,1774422603703,172.01848456,2e-05,2]
[408902800,1774422604123,127.98151544,2e-05,2]
[408902801,1774422604146,58.35848456,2e-05,2]
[408902802,1774422604653,186.34,2e-05,2]
[408902803,1774422605027,186.34,2e-05,2]
[408902804,1774422605494,186.34,2e-05,2]
[408902805,1774422605914,186.34,2e-05,2]
[408902806,1774422606275,186.34,2e-05,2]
[408902807,1774422606628,186.34,2e-05,2]
[408902808,1774422606986,186.34,2e-05,2]
[408902809,1774422607340,186.34,2e-05,2]
[408902810,1774422607762,186.34,2e-05,2]
[408902865,1774422638142,-820.7951788,2.058e-05,2]
[408902866,1774422638151,-5000.0,2.079e-05,2]
[408902868,1774422638160,-186.34,2.1e-05,2]
[408902870,1774422638170,-186.34,2.1e-05,2]
[408902872,1774422638179,-186.34,2.1e-05,2]
[408902875,1774422638189,-186.34,2.1e-05,2]
[408902877,1774422638198,-186.34,2.1e-05,2]
[408902878,1774422638207,-186.34,2.1e-05,2]
[408902880,1774422638216,-45.47096333,2.1e-05,2]
[408902883,1774422638227,-140.86903667,2.1e-05,2]
[408902885,1774422638236,-186.34,2.1e-05,2]
[408902887,1774422638245,-186.34,2.1e-05,2]
[408902890,1774422638254,-186.34,2.1e-05,2]
[408902893,1774422638263,-186.34,2.1e-05,2]
[408902895,1774422638272,-186.34,2.1e-05,2]
[408902896,1774422638281,-186.34,2.1e-05,2]
[408902899,1774422638290,-186.34,2.1e-05,2]
[408902900,1774422638299,-186.34,2.1e-05,2]
[408902903,1774422638309,-186.34,2.1e-05,2]
[408902905,1774422638318,-186.34,2.1e-05,2]
[408902907,1774422638327,-186.34,2.1e-05,2]
[408902909,1774422638336,-186.34,2.1e-05,2]
[408902911,1774422638345,-186.34,2.1e-05,2]
[408902913,1774422638354,-186.34,2.1e-05,2]
[408902915,1774422638363,-186.34,2.1e-05,2]
[408902917,1774422638372,-186.34,2.1e-05,2]
[408902918,1774422638381,-186.34,2.1e-05,2]
[408902920,1774422638390,-186.34,2.1e-05,2]
[408902922,1774422638399,-186.34,2.2e-05,2]
[408902924,1774422638408,-186.34,2.2e-05,2]
[408902926,1774422638417,-186.34,2.2e-05,2]
[408902928,1774422638426,-186.34,2.2e-05,2]
[408902931,1774422638436,-186.34,2.2e-05,2]
[408902933,1774422638445,-186.34,2.2e-05,2]
[408902935,1774422638454,-186.34,2.2e-05,2]
[408902937,1774422638463,-186.34,2.2e-05,2]
[408902938,1774422638472,-186.34,2.2e-05,2]
[408902940,1774422638481,-186.34,2.2e-05,2]
[408902942,1774422638490,-186.34,2.2e-05,2]
[408902944,1774422638499,-186.34,2.2e-05,2]
[408902946,1774422638508,-186.34,2.2e-05,2]
[408902948,1774422638517,-186.34,2.2e-05,2]
[408902950,1774422638526,-800.0,0.00013256,2]
[408902952,1774422638535,-800.0,0.00013283,2]
[408902954,1774422638544,-812.09357099,0.00013284,2]
[408902956,1774422638555,-800.0,0.00013371,2]
[408902958,1774422638564,-800.0,0.00013394,2]
[408902961,1774422638577,-180.0,0.00013697,2]
[408902963,1774422638587,-1000.0,0.00013699,2]
[408902965,1774422638596,-324.7426577,0.00015995,2]
[408902967,1774422638609,-997.0,0.00016302,2]
[408902969,1774422638618,-254.95003727,0.00016544,2]
[408902971,1774422638628,-6681.74066161,0.00016554,2]
[408902973,1774422638637,-324.6447676,0.00016819,2]
[408902975,1774422638648,-184.0,0.00016845,2]
[408902977,1774422638657,-252.11322664,0.0001699,2]
[408902979,1774422638666,-168.0,0.00017201,2]
[408902982,1774422638675,-1333.41740296,0.00017248,2]
[408902983,1774422638686,-168.0,0.00017281,2]
[408902985,1774422638696,-160.0,0.00017373,3]
[408902987,1774422638705,-168.0,0.0001749,2]
[408902989,1774422638714,-500.0,0.00017508,2]
[408902992,1774422638724,-151.0,0.00017592,2]
[408902994,1774422638733,-272.134048,0.00017598,2]
[408902996,1774422638743,-152.0,0.000176,2]
[408902998,1774422638752,-731.53371243,0.00017622,2]
[408903000,1774422638761,-652.87242623,0.000177,2]
[408903002,1774422638770,-2721.05733756,0.00017751,2]
[408903004,1774422638778,-442.60590132,0.00017773,2]
[408903006,1774422638788,-309.55815481,0.00017773,2]
[408903008,1774422638798,-235.25216824,0.00017781,3]
[408903010,1774422638806,-150.21455205,0.000178,12]
[408903012,1774422638815,-150.94753092,0.000178,12]
[408903014,1774422638824,-39813.83881465,0.000178,2]
[408903016,1774422638837,-697.31738158,0.000178,2]
[408903465,1774422643335,-5000.0,0.00016139,2]
[408903467,1774422643345,-888.94493531,0.00017444,2]
[408903469,1774422643354,-15417.95506469,0.000178,2]
[408903486,1774422643502,-3896.11847603,0.000178,2]
[408903517,1774422646318,-46934.51527655,0.000178,2]
[408903518,1774422646330,-629701.78895247,0.000178,2]
[408903519,1774422646341,-921.64530477,0.000178,2]
[408903520,1774422646353,-3952.86633803,0.000178,2]
[408903532,1774423203598,227.9,2e-05,2]
[408903533,1774423204040,227.9,2e-05,2]
[408903534,1774423204490,227.9,2e-05,2]
[408903535,1774423204921,227.9,2e-05,2]
[408903540,1774423205424,227.9,2e-05,2]
[408903549,1774423205775,227.9,2e-05,2]
[408903554,1774423206208,227.9,2e-05,2]
[408903555,1774423206635,227.9,2e-05,2]
[408903556,1774423206999,227.9,2e-05,2]
[408903557,1774423207452,227.9,2e-05,2]
[408903558,1774423207790,227.9,2e-05,2]
[408903584,1774423824407,-1200.0,2.098e-05,2]
[408903585,1774423824439,-300.0,2.099e-05,2]
[408903586,1774423824467,-18.25933839,2.099e-05,2]
[408903587,1774423824519,-281.74066161,2.099e-05,2]
[408903588,1774423824670,977.46299715,2.009e-05,2]
[408903606,1774423832140,-202.0,2.099e-05,2]
[408903607,1774423832150,-300.0,2.099e-05,2]
[408903608,1774423832161,-227.9,2.1e-05,2]